Cogmind - Beta 11.1 @@@ ROGUE MODE // 2022.05.22 @ 19:28:13 Player: Jezoensis Result: Destroyed by as-33585 with Assembled Blade Performance ------------- Evolutions (0) 0 Regions Visited (3) 600 Robots Destroyed (24) 120 Value Destroyed (420) 420 Prototype IDs (1) 20 Alien Tech Used (0) 0 Bonus (19) 19 TOTAL SCORE: 1179 Bonus ------- High Alert Combat Kills 19 Cogmind --------- Core Integrity 0/250 Matter 266/300 Energy 100/100 System Corruption 8% Temperature Cool (10) Movement Rolling (100) Location -10/Exiles Parts ------- > --- POWER (1) -------- (None) > --- PROPULSION (2) --- Compact Wheel > --- UTILITY (2) ------ Medium Storage Unit > --- WEAPON (2) ------- Light Assault Rifle Grenade Launcher > --- INVENTORY (10) --- Light Ion Engine Light Treads Light Treads Light Treads Improved Terrain Scanner Improved Terrain Scanner Terrain Scan Processor Assault Rifle Light Assault Rifle Mining Laser Peak State ------------ > --- POWER ------------ Ion Engine > --- PROPULSION ------- Compact Wheel Compact Wheel > --- UTILITY ---------- Medium Storage Unit Experimental Sensor Array > --- WEAPON ----------- Assault Rifle Assault Rifle > --- INVENTORY -------- Light Ion Engine Light Treads Light Treads Light Treads Light Assault Rifle Light Assault Rifle Light Assault Rifle Grenade Launcher Grenade Launcher Mining Laser [Rating: 16] Favorites ----------- Power Ion Engine Engine Ion Engine Propulsion Wheel Treads Light Treads Wheel Wheel Utility Medium Storage Unit Device Improved Terrain Scanner Storage Medium Storage Unit Protection Core Shielding Weapon Assault Rifle Ballistic Gun Assault Rifle Launcher Grenade Launcher Build | -11 -10 -10 -10 ------- Run | Scr Mat Min Exi Slots Evolved . | . . . . Power . | . . . . Propulsion . | . . . . Utility . | . . . . Weapon . | . . . . Parts Attached 38 | 8 15 14 1 Power 3 | 1 . 2 . Engine 3 | 1 . 2 . Core . | . . . . Reactor . | . . . . Propulsion 8 | 3 2 3 . Treads 1 | . . 1 . Leg . | . . . . Wheel 7 | 3 2 2 . Hover . | . . . . Flight . | . . . . Utility 10 | 2 5 3 . Device 6 | 1 2 3 . Storage 2 | 1 1 . . Processor . | . . . . Hackware . | . . . . Protection 2 | . 2 . . Artifact . | . . . . Weapon 17 | 2 8 6 1 Energy Gun . | . . . . Energy Cannon . | . . . . Ballistic Gun 11 | 2 5 4 . Ballistic Cannon . | . . . . Launcher 6 | . 3 2 1 Special Weapon . | . . . . Impact Weapon . | . . . . Slashing Weapon . | . . . . Piercing Weapon . | . . . . Special Melee Weapon . | . . . . Unidentified Prototypes 1 | . . 1 . Corrupted Parts 1 | . . 1 . System Corruption 3 | . . 3 . Parts Lost 11 | . 1 7 3 Power 3 | . . 2 1 Propulsion 3 | . 1 1 1 Utility 3 | . . 2 1 Weapon 2 | . . 2 . Highest Loss Streak 4 | . 1 4 3 To Critical Strikes . | . . . . Average Slot Usage (%) 97 | . 100 95 100 Engine 13 | . 14 13 14 Wheel 27 | . 28 26 28 Device 11 | . 13 10 14 Storage 14 | . 14 14 14 Ballistic Gun 27 | . 27 27 28 Naked Turns . | . . . . Heaviest Build 21 | 14 20 21 17 Greatest Support 32 | 26 26 32 26 Greatest Overweight (x) 1 | 1 . 1 . Average Overweight (x) . | . . . . Largest Inventory Capacity 10 | 8 10 10 10 Average Capacity 9 | 7 8 10 10 Most Carried 10 | 7 9 10 10 Average Carried 8 | 4 8 9 10 Final Capacity 10 | 8 10 10 10 Final Carried 10 | 7 9 10 10 Class Distribution -------------------- 86% | Mutant 13% | Scavenger-Mutant Dominant Class ---------------- Mutant | -10/Materials Mutant | -10/Mines Scavenger-Mutant | -10/Exiles Resources | -11 -10 -10 -10 ----------- Run | Scr Mat Min Exi Matter Collected 1086 | 247 255 584 . Remotely . | . . . . Salvage Created 618 | 71 325 208 14 Parts 46 | 8 22 8 8 Haulers Intercepted 1 | . 1 . . Recyclers Shooed 3 | . 1 2 . Parts Field Recycled . | . . . . Retrieved Matter . | . . . . Parts Self-Destructed . | . . . . Prevented . | . . . . Kills | -11 -10 -10 -10 ------- Run | Scr Mat Min Exi Combat Hostiles Destroyed 25 | . 12 13 . Guns 13 | . 4 9 . AOE 12 | . 8 4 . Classes Destroyed 6 | 1 4 1 . Worker 1 | . 1 . . Tunneler 4 | 4 . . . Hauler 1 | . 1 . . Swarmer 9 | . 6 3 . Grunt 8 | . 6 2 . Assembled 8 | . . 8 . Best Kill Streak 4 | 3 4 3 1 Combat Bots Only 3 | . 3 3 . Max Kills in Single Turn 3 | 1 3 2 1 Gunslinging . | . . . . Exploded 3 | . 3 2 . Melee . | . . . . Uniques/NPCs Destroyed 1 | . . . 1 EX-HEX (-10/Exiles) Combat | -11 -10 -10 -10 -------- Run | Scr Mat Min Exi Damage Taken 1290 | . 365 634 291 Core 257 | . 65 97 95 Absorbed by Shields . | . . . . Redirected to Shielding 6 | . 6 . . Core Remaining (%) 100 | 100 . . . Volleys Fired 101 | 9 42 48 2 Largest 2 | 2 2 2 1 Hottest 40 | 40 40 40 30 Shots Fired 190 | 18 77 92 3 Gun 177 | 18 70 88 1 Cannon . | . . . . Launcher 13 | . 7 4 2 Special . | . . . . Kinetic 177 | 18 70 88 1 Thermal . | . . . . Explosive 13 | . 7 4 2 Electromagnetic . | . . . . Robot Hit Streak 9 | 7 9 9 1 Robot Miss Streak 4 | 1 2 4 2 Penetration Max . | . . . . Secondary Targets 1 | . . 1 . Max Gunslinging Chain 1 | . . 1 . Shots Hit Robots 104 | 12 47 44 1 Core Hits 55 | 6 23 23 3 Critical Kills 1 | . 1 . . Critical Parts Destroyed . | . . . . Critical Strikes 1 | . 1 . . Destroy 1 | . 1 . . Melee Attacks . | . . . . Impact . | . . . . Slashing . | . . . . Piercing . | . . . . Sneak Attacks . | . . . . Combat Hostiles . | . . . . Follow-up Attacks . | . . . . Damage Inflicted 1832 | 139 910 746 37 Guns 1169 | 139 468 562 . Cannons . | . . . . Explosions 663 | . 442 184 37 Melee . | . . . . Ramming . | . . . . Kinetic 1169 | 139 468 562 . Thermal . | . . . . Explosive 663 | . 442 184 37 Electromagnetic . | . . . . Impact . | . . . . Slashing . | . . . . Piercing . | . . . . Highest Corruption 8 | . . 8 8 Average Corruption 7 | . . 6 8 Corruption Purged . | . . . . Corruption Blocked . | . . . . Effects 9 | . . 7 2 Message Errors 3 | . . 2 1 Matter Fused 2 | . . 2 . Energy Discharges 1 | . . 1 . Misfires 2 | . . 1 1 Weapon Failures 1 | . . 1 . Overload Shots . | . . . . Overflow Damage . | . . . . Projectiles . | . . . . Explosions . | . . . . Melee . | . . . . Knockbacks . | . . . . Impact . | . . . . Kinetic . | . . . . Secondary . | . . . . Self-Inflicted Damage 31 | . . 31 . Shots 1 | . . 1 . Rammed . | . . . . Targets Rammed . | . . . . Kicked . | . . . . Crushed . | . . . . Highest Temperature 15 | . 12 5 15 Average Temperature 6 | . 6 2 11 Received Heat Transfer 285 | . 135 110 40 Siege Activations . | . . . . Robots Corrupted . | . . . . Combat Hostiles . | . . . . Parts Fried . | . . . . Impact Corruptions . | . . . . Robots Melted . | . . . . Combat Hostiles . | . . . . Parts Melted . | . . . . Heat Transferred . | . . . . Parts Sabotaged . | . . . . Parts Stolen . | . . . . Parts Stripped . | . . . . Power Chain Reactions . | . . . . Missiles Intercepted . | . . . . Alert | -11 -10 -10 -10 ------- Run | Scr Mat Min Exi Peak Influence 536 | 20 536 329 . Initial 132 | . 13 132 . Average 234 | 7 288 224 . Maximum Alert Level 2 | . 2 1 . Low Security (%) 35 | 100 26 31 . Level 1 54 | . 51 68 . Level 2 10 | . 22 . . Level 3 . | . . . . Level 4 . | . . . . Level 5 . | . . . . High Security . | . . . . Max Security . | . . . . Squads Dispatched 3 | . 3 . . Investigation 1 | . 1 . . Extermination . | . . . . Reinforcement 2 | . 2 . . Assault . | . . . . Garrison . | . . . . Intercept . | . . . . Searches Triggered . | . . . . Construction Impeded . | . . . . Haulers Reinforced . | . . . . Active Scanning Responses . | . . . . Cargo Convoy Interrupts . | . . . . Stealth | -11 -10 -10 -10 --------- Run | Scr Mat Min Exi Distress Signals 2 | . 2 . . Communications Jammed . | . . . . Distress Signals . | . . . . Times Spotted 42 | . 21 13 8 Peak Tracking Total 9 | . 5 3 9 Tactical Retreats 1 | . 1 . . Traps | -11 -10 -10 -10 ------- Run | Scr Mat Min Exi Traps Triggered . | . . . . Indirectly . | . . . . Trap Hack Attempts . | . . . . Triggered . | . . . . Disarmed . | . . . . Reprogrammed . | . . . . Reused . | . . . . Traps Extracted . | . . . . Installed . | . . . . Triggered . | . . . . Machines | -11 -10 -10 -10 ---------- Run | Scr Mat Min Exi Machines Disabled 1 | . . . 1 Max in Single Turn 1 | . . . 1 Machines Sabotaged . | . . . . Garrisons Compromised . | . . . . Overloaded Fab Kills . | . . . . Hacking | -11 -10 -10 -10 --------- Run | Scr Mat Min Exi Machines Accessed 3 | . 3 . . Terminals 3 | . 3 . . Fabricators . | . . . . Repair Stations . | . . . . Recycling Units . | . . . . Scanalyzers . | . . . . Garrison Access . | . . . . Total Hacks 9 | . 9 . . Successful 5 | . 5 . . Failed 4 | . 4 . . Catastrophic . | . . . . Database Lockouts . | . . . . Manual 8 | . 8 . . Terminals 9 | . 9 . . Fabricators . | . . . . Repair Stations . | . . . . Recycling Units . | . . . . Scanalyzers . | . . . . Garrison Access . | . . . . Terminal Hacks 4 | . 4 . . Robot Analysis 3 | . 3 . . Locate Traps 1 | . 1 . . Fabricator Hacks . | . . . . Repair Station Hacks . | . . . . Recycling Unit Hacks . | . . . . Scanalyzer . | . . . . Garrison Access Hacks . | . . . . Unauthorized Hacks 1 | . 1 . . Terminals 1 | . 1 . . Botnet 1 | . 1 . . Fabricators . | . . . . Repair Stations . | . . . . Recycling Units . | . . . . Scanalyzers . | . . . . Garrison Access . | . . . . Data Cores Recovered . | . . . . Used . | . . . . Hacking Detections 3 | . 3 . . Full Trace Events 2 | . 2 . . Feedback Events . | . . . . Feedback Blocked . | . . . . Robot Schematics Acquired . | . . . . Robots Built . | . . . . Authchips . | . . . . Time . | . . . . Total Robot Build Rating . | . . . . Part Schematics Acquired . | . . . . Parts Built . | . . . . Authchips . | . . . . Time . | . . . . Total Part Build Rating . | . . . . Parts Repaired . | . . . . Time . | . . . . Parts Recycled . | . . . . Recycled Matter . | . . . . Retrieved Matter . | . . . . Retrieved Components . | . . . . Parts Scanalyzed . | . . . . Part Schematics Acquired . | . . . . Parts Damaged . | . . . . Bothacking | -11 -10 -10 -10 ------------ Run | Scr Mat Min Exi Used RIF Installer . | . . . . Robots Hacked . | . . . . Non-combat . | . . . . Combat . | . . . . Robot Hacks Applied . | . . . . Relay Couplers Released . | . . . . Fabnet Peak Effective % . | . . . . Robots Rewired . | . . . . Allies Hacked . | . . . . Hacks Repelled . | . . . . Allies | -11 -10 -10 -10 -------- Run | Scr Mat Min Exi Total Allies . | . . . . Largest Group . | . . . . Highest-Rated Group . | . . . . Highest-Rated Ally . | . . . . Total Orders . | . . . . Ally Attacks . | . . . . Total Damage . | . . . . Kills . | . . . . Allies Corrupted . | . . . . Allies Melted . | . . . . Intel | -11 -10 -10 -10 ------- Run | Scr Mat Min Exi Robot Analysis Total 3 | . 3 . . Derelict Logs Recovered 1 | . . 1 . Drone Launches . | . . . . Drone Recoveries . | . . . . Exploration | -11 -10 -10 -10 ------------- Run | Scr Mat Min Exi Turns Passed 1028 | 87 444 447 50 Spaces Moved 734 | 54 341 289 50 Core 8 | 8 . . . Treads . | . . . . Legs . | . . . . Wheels 726 | 46 341 289 50 Hover . | . . . . Flight . | . . . . Fastest Speed 50 | 50 80 90 90 Average Speed 90 | 77 88 94 90 Slowest Speed 115 | 95 90 115 90 Overloaded Moves . | . . . . Propulsion Burnouts . | . . . . Robots Hopped . | . . . . Cave-ins Triggered . | . . . . Exploration Rate (%) 35 | 3 70 50 20 Regions Visited 3 Branch Regions 2 Pre-discovered Areas 1 | . . 1 . Known Exits Taken 1 | . . 1 . Unknown Exits Taken 2 | 1 1 . . Scrap Searched . | . . . . Spaces Dug . | . . . . Terrain Destroyed 74 | . 41 30 3 Melee . | . . . . Projectile . | . . . . AOE 74 | . 41 30 3 Terrain Rammed . | . . . . Walls Destroyed . | . . . . Machines Disabled . | . . . . Actions | -11 -10 -10 -10 --------- Run | Scr Mat Min Exi Total 914 | 81 412 368 53 Wait 4 | . 1 3 . Move 731 | 53 340 288 50 Hop . | . . . . Pick Up 25 | 10 6 9 . Fast Attach 10 | 4 1 5 . Attach 11 | 4 2 5 . Detach 2 | 1 1 . . Swap 17 | . 12 4 1 Drop 13 | . 7 6 . Fire 101 | 9 42 48 2 Melee . | . . . . Ram . | . . . . Kick . | . . . . Crush . | . . . . Escape Stasis . | . . . . Rewire . | . . . . Trap . | . . . . Miscellaneous . | . . . . Route ------- -11/Scrapyard -10/Materials (discovered 2 exits: [*Mat] / [*Min]) -10/Mines -10/Exiles History --------- Turn | Location | Event 7 | -11/Scrapyard | Discovered new exit (range 16) 88 | -11/Scrapyard | Entered Materials 271 | -10/Materials | Discovered new exit (range 9) 353 | -10/Materials | Build established: Mutant 484 | -10/Materials | Discovered new exit (range 16) 532 | -10/Materials | Entered Mines 578 | -10/Mines | Assembled infested the area 702 | -10/Mines | Learned location of Storage (-8) 831 | -10/Mines | Lost 4 parts (1p1n1u1w) 841 | -10/Mines | Identified exit to Exiles 848 | -10/Mines | Found a damaged Exp. Sensor Array with a note attached 851 | -10/Mines | Found Prototype Device 851 | -10/Mines | Identified Exp. Sensor Array 922 | -10/Mines | Core integrity fell below 50% 975 | -10/Mines | Deemed a non-threat by the Exiles lab entrance 979 | -10/Mines | Entered Exiles 1001 | -10/Exiles | Met 8R-AWN 1015 | -10/Exiles | Met EX-HEX 1024 | -10/Exiles | Attacked by the Exiles 1028 | -10/Exiles | Core integrity fell below 20% 1028 | -10/Exiles | Destroyed EX-HEX 1029 | -10/Exiles | Destroyed by as-33585 with Assembled Blade Last Messages --------------- pattern or logic. It's almost like the early stages of some sort of... evolution. I'd love to just go ask the Imprinter what all this is about, she must know something, but I doubt that would end well. The Zionites will tell you those Marauders at the gates are defenses set up by Warlord... Nope, the Imprinter put them there mostly to keep us out! Anyway, I've got to get back to poking and prodding these nasty little guys. Go see BIN. I can't imagine you'll want to stay in our boring little cave for long, and we could use some help with the project in the back. 01024_ System corrupted: FCS attempts to trigger Assault Rifle. 01024_ System corrupted: Assault Rifle misfires. 01024_ EXILES: Hostile robot within lab perimeter. Defensive protocols time, folks! 01026_ Assembled Analyzer disabled. 01028_ Structural Scanner destroyed. 01028_ Wheel destroyed. 01028_ EX-HEX destroyed. 01029_ Lgt. Ion Engine destroyed. Map ----- +----------------------------------------------------+ | ?????????????????????????????????????????????????? | | ?????????????????????????????????????????????????? | | ?????????????????????????????????????????????????? | | ?????????????????????????????????????????????????? | | ?????????????????????????????????????????????????? | | ?????????????????????????????????????????????????? | | ?????????????????????????????????????????????????? | | ?????????????????????????????????????????????????? | | ?????????????????????????????????????????????????? | | ?????????????????????????????????????????????????? | | ??????????????????????? "????????????????????????? | | ????????????????????? """##?????????#######???? | | ?????????????????? "a"###???????########???? | | ???????????????? " ###?????###" ##???? | | ?????????????? ###????###" ###??? | | ?????????????? "##??#####" #####? | | ????????????? "###?#### ##### | | ?????????????" ###### ### | | ??????????????" ! ! ##### g #" | | ?????????????""" % ### | | ?????????????" ! ## | | ???????????"""" #### | | ??????????? ""###"""""## | | ?????????? #"""########### | | ?????????? ################ | | ?????????? a@a ########????????? | | ?????????? " aaa ####?????????????? | | ???????????? """ ""###??????????????? | | ????????????? " " ""#" a a"###???????????????? | | ???????????????""??""##"""""""####???????????????? | | ????????????????????#############????????????????? | | ?????????????????????###########?????????????????? | | ?????????????????????????????????????????????????? | | ?????????????????????????????????????????????????? | | ?????????????????????????????????????????????????? | | ?????????????????????????????????????????????????? | | ?????????????????????????????????????????????????? | | ?????????????????????????????????????????????????? | | ?????????????????????????????????????????????????? | | ?????????????????????????????????????????????????? | | ?????????????????????????????????????????????????? | | ?????????????????????????????????????????????????? | | ?????????????????????????????????????????????????? | | ?????????????????????????????????????????????????? | | ?????????????????????????????????????????????????? | | ?????????????????????????????????????????????????? | | ?????????????????????????????????????????????????? | | ?????????????????????????????????????????????????? | | ?????????????????????????????????????????????????? | | ?????????????????????????????????????????????????? | +----------------------------------------------------+ Best States ------------- Heat Dissipation 35 Energy Generation 10 Energy Capacity 250 Matter Stores 300 Matter Capacity 300 Sight Range 16 Terrain Scan Range 16 Terrain Scan Density 10 Core Shielding 20 Evasion (%) 44 Recoil Reduction 1 Item Schematics ----------------- None Robot Schematics ------------------ None Fabricated ------------ Nothing Alien Tech Used ----------------- None Achievements -------------- None Challenges ------------ None Game ------ Seed CoolantAbsorptionBooster Manual? 0 Play Time 00:12:28 Cumulative 649.8 hours Start 2022.05.22 @ 19:16:16 End 2022.05.22 @ 19:28:13 Sessions 1 Manual Loads 0 Difficulty Rogue Special Mode None Game No. 335 Rogue 208 Adventurer 125 Explorer 2 Win Type - Total 69 Types 60/3/3/1/1/0/0/0/1 Lore% 76 Gallery% 86 Achievement% 71 Wizard Run 0 Options --------- ASCII 0 Keyboard 1 Movement Numpad Keybinds 0 Fullscreen 1 Font 36/TerminusFine Map View 76x50 Tactical HUD 1 Map Filters NONE Filters NONE Steam 1 RUN: 3546d74c-b1ec-4216-a988-63d881a5fb56